fUSD/lending_fUSD_20260202
["ID","MTS","AMOUNT","RATE_DAILY","PERIOD"]
[404286232,1770033042871,-500.0,0.00013698,2]
[404286233,1770033042883,-500.0,0.00013698,2]
[404286234,1770033042895,-500.0,0.00013698,2]
[404286235,1770033042908,-519.14978785,0.00013698,2]
[404286236,1770033042918,-500.0,0.00013698,2]
[404286237,1770033042929,-500.0,0.00013698,2]
[404286238,1770033042940,-500.0,0.00013698,2]
[404286239,1770033042952,-500.0,0.00013698,2]
[404286241,1770033042966,-506.4463116,0.00013698,2]
[404286243,1770033042978,-500.0,0.00013698,2]
[404286244,1770033042990,-503.69401691,0.00013698,2]
[404286245,1770033043001,-500.0,0.00013698,2]
[404286246,1770033043013,-500.0,0.00013698,2]
[404286247,1770033043023,-500.0,0.00013698,2]
[404286248,1770033043034,-500.0,0.00013698,2]
[404286249,1770033043044,-500.0,0.00013698,2]
[404286250,1770033043055,-500.0,0.00013698,2]
[404286251,1770033043065,-500.0,0.00013698,2]
[404286252,1770033043075,-500.0,0.00013698,2]
[404286253,1770033043084,-500.0,0.00013698,2]
[404286254,1770033043094,-500.0,0.00013698,2]
[404286255,1770033043104,-500.0,0.00013698,2]
[404286256,1770033043115,-500.0,0.00013698,2]
[404286257,1770033043124,-500.0,0.00013698,2]
[404286258,1770033043134,-500.0,0.00013698,2]
[404286259,1770033043145,-587.5541255,0.00013698,2]
[404286260,1770033043157,-523.26417397,0.00013698,2]
[404286261,1770033043168,-500.0,0.00013698,2]
[404286262,1770033043179,-496.93460441,0.00013698,2]
[404286263,1770033043190,-150.0,0.00013699,2]
[404286264,1770033043200,-500.0,0.00013699,2]
[404286265,1770033043210,-150.4373073,0.00013699,2]
[404286266,1770033043220,-150.0,0.00013699,2]
[404286267,1770033043232,-500.0,0.00013699,2]
[404286268,1770033043242,-500.0,0.00013699,2]
[404286269,1770033043254,-500.0,0.00013699,2]
[404286270,1770033043263,-150.0,0.00013699,2]
[404286271,1770033043274,-500.0,0.00013699,2]
[404286272,1770033043285,-150.0,0.00013699,2]
[404286273,1770033043296,-150.0,0.00013699,2]
[404286274,1770033043308,-150.0,0.00013699,2]
[404286275,1770033043319,-500.0,0.00013699,2]
[404286276,1770033043330,-150.0,0.00013699,2]
[404286277,1770033043341,-250.52896875,0.00013699,2]
[404286278,1770033043353,-150.0,0.00013699,2]
[404286279,1770033043363,-500.0,0.00013699,2]
[404286280,1770033043374,-500.0,0.00013699,2]
[404286281,1770033043384,-257.13669619,0.00013699,2]
[404286282,1770033043395,-500.0,0.00013699,2]
[404286283,1770033043408,-500.0,0.00013699,2]
[404286284,1770033043419,-150.54146631,0.00013699,2]
[404286285,1770033043431,-500.0,0.00013699,2]
[404286286,1770033043442,-502.95071122,0.00013726,2]
[404286287,1770033043454,-6922.0,0.00013748,2]
[404286288,1770033043465,-150.0,0.00013754,2]
[404286289,1770033043476,-500.0,0.00013754,2]
[404286290,1770033043488,-150.0,0.00013754,2]
[404286291,1770033043498,-500.0,0.00013754,2]
[404286292,1770033043508,-500.0,0.00013754,2]
[404286293,1770033043520,-150.0,0.00013754,2]
[404286294,1770033043530,-500.0,0.00013754,2]
[404286295,1770033043540,-500.0,0.00013754,2]
[404286296,1770033043550,-150.0,0.00013754,2]
[404286297,1770033043561,-150.0,0.00013754,2]
[404286298,1770033043571,-500.0,0.00013754,2]
[404286299,1770033043582,-150.0,0.00013754,2]
[404286300,1770033043592,-150.0,0.00013754,2]
[404286301,1770033043603,-500.0,0.00013754,2]
[404286302,1770033043613,-150.0,0.00013754,2]
[404286303,1770033043624,-500.0,0.00013754,2]
[404286304,1770033043635,-500.0,0.00013754,2]
[404286305,1770033043648,-500.0,0.00013754,2]
[404286306,1770033043660,-500.0,0.00013754,2]
[404286307,1770033043670,-6922.0,0.00013802,2]
[404286308,1770033043680,-150.0,0.00013809,2]
[404286309,1770033043691,-500.0,0.00013809,2]
[404286310,1770033043701,-150.0,0.00013809,2]
[404286311,1770033043712,-569.21162373,0.00013809,2]
[404286312,1770033043724,-500.0,0.00013809,2]
[404286313,1770033043735,-150.0,0.00013809,2]
[404286314,1770033043746,-500.0,0.00013809,2]
[404286315,1770033043757,-548.08731584,0.00013809,2]
[404286316,1770033043767,-150.0,0.00013809,2]
[404286317,1770033043777,-155.36591009,0.00013809,2]
[404286318,1770033043787,-500.0,0.00013809,2]
[404286319,1770033043797,-215.60722138,0.00013809,2]
[404286320,1770033043808,-150.0,0.00013809,2]
[404286321,1770033043820,-500.0,0.00013809,2]
[404286322,1770033043831,-282.97813088,0.00013809,2]
[404286323,1770033043842,-500.0,0.00013809,2]
[404286324,1770033043853,-500.0,0.00013809,2]
[404286325,1770033043864,-500.0,0.00013809,2]
[404286326,1770033043875,-500.0,0.00013809,2]
[404286327,1770033043887,-6922.0,0.00013857,2]
[404286328,1770033043898,-200.0,0.00013863,2]
[404286329,1770033043908,-500.0,0.00013863,2]
[404286330,1770033043919,-179.32668848,0.00013863,2]
[404286331,1770033043930,-500.0,0.00013863,2]
[404286332,1770033043940,-169.35603716,0.00013863,2]
[404286333,1770033043950,-500.0,0.00013863,2]
[404286334,1770033043962,-235.58915604,0.00013863,2]
[404286335,1770033043973,-500.0,0.00013863,2]
[404286336,1770033043983,-150.0,0.00013863,2]
[404286337,1770033043995,-500.0,0.00013863,2]
[404286340,1770033044006,-500.0,0.00013863,2]
[404286341,1770033044017,-206.36581695,0.00013863,2]
[404286346,1770033044029,-500.0,0.00013863,2]
[404286347,1770033044039,-6922.0,0.00013912,2]
[404286348,1770033044050,-500.0,0.00013918,2]
[404286349,1770033044060,-500.0,0.00013918,2]
[404286350,1770033044070,-506.61162713,0.00013918,2]
[404286351,1770033044080,-158.43558998,0.00013918,2]
[404286353,1770033044090,-150.0,0.00013918,2]
[404286354,1770033044101,-500.0,0.00013918,2]
[404286355,1770033044111,-223.2,0.00013963,2]
[404286356,1770033044122,-6922.0,0.00013967,2]
[404286357,1770033044132,-500.0,0.00013973,2]
[404286358,1770033044143,-500.0,0.00013973,2]
[404286359,1770033044153,-500.7756559,0.00013973,2]
[404286360,1770033044163,-177.72668829,0.00013973,2]
[404286361,1770033044173,-501.3792678,0.00013973,2]
[404286362,1770033044184,-500.88887474,0.00013973,2]
[404286363,1770033044194,-500.0,0.00013973,2]
[404286364,1770033044204,-500.125501,0.00013973,2]
[404286365,1770033044214,-501.73498825,0.00013973,2]
[404286366,1770033044223,-500.0,0.00013973,2]
[404286367,1770033044235,-500.0,0.00013973,2]
[404286368,1770033044244,-500.0,0.00013973,2]
[404286369,1770033044254,-500.0,0.00013973,2]
[404286370,1770033044263,-500.0,0.00013973,2]
[404286371,1770033044273,-500.0,0.00013973,2]
[404286372,1770033044283,-170.70108958,0.00013973,2]
[404286373,1770033044292,-500.0,0.00013973,2]
[404286374,1770033044302,-407.76648186,0.00013973,2]
[404286375,1770033044313,-217.67941742,0.00013973,2]
[404286376,1770033044323,-169.68447442,0.00013973,2]
[404286377,1770033044334,-500.0,0.00013973,2]
[404286378,1770033044344,-500.0,0.00013973,2]
[404286379,1770033044354,-500.0,0.00013973,2]
[404286380,1770033044511,-500.0,0.00013973,2]
[404286381,1770033044536,-500.0,0.00013973,2]
[404286382,1770033044554,-500.0,0.00013973,2]
[404286383,1770033044566,-500.0,0.00013973,2]
[404286384,1770033044577,-503.39541784,0.00013973,2]
[404286385,1770033044587,-319.40810166,0.00013973,2]
[404286386,1770033044599,-500.0,0.00013973,2]
[404286387,1770033044612,-500.0,0.00013973,2]
[404286388,1770033044625,-207.33206215,0.00013973,2]
[404286389,1770033044635,-255.0,0.00013998,2]
[404286390,1770033044647,-11435.38764467,0.00014003,2]
[404286391,1770033044664,-10954.02929009,0.00014005,2]
[404286392,1770033044674,-6922.0,0.00014021,2]
[404286393,1770033044684,-6922.61609587,0.00014076,2]
[404286394,1770033044693,-4625.57151435,0.00014083,2]
[404286395,1770033044705,-195.0,0.00014083,2]
[404286396,1770033044715,-600.0,0.00014097,2]
[404286397,1770033044725,-600.0,0.00014097,2]
[404286398,1770033044735,-600.0,0.00014097,2]
[404286399,1770033044745,-195.0,0.00014097,2]
[404286400,1770033044755,-250.0,0.00014097,2]
[404286401,1770033044765,-1680.0,0.00014097,2]
[404286402,1770033044774,-2500.0,0.00014097,2]
[404286403,1770033044784,-2500.0,0.00014097,2]
[404286404,1770033044794,-2500.0,0.00014097,2]
[404286405,1770033044803,-201.49801051,0.00014097,2]
[404286406,1770033044813,-600.0,0.00014097,2]
[404286407,1770033044823,-600.0,0.00014097,2]
[404286408,1770033044833,-195.0,0.00014097,2]
[404286409,1770033044843,-502.27711246,0.00014098,2]
[404286410,1770033044853,-2500.0,0.00014113,2]
[404286411,1770033044863,-195.0,0.00014113,2]
[404286412,1770033044872,-1101.49426781,0.00014113,2]
[404286413,1770033044882,-300.0,0.00014113,2]
[404286414,1770033044894,-195.0,0.00014113,2]
[404286415,1770033044911,-152.49,0.00014118,2]
[404286416,1770033044921,-166.66,0.00014124,2]
[404286417,1770033044933,-180.0,0.00014137,2]
[404286418,1770033044953,-500.0,0.0001418,2]
[404286419,1770033044970,-160.29,0.00014246,2]
[404286420,1770033044984,-910.54547353,0.00014261,2]
[404286421,1770033044994,-1503.0,0.00014439,2]
[404286422,1770033045006,-151.0,0.00014439,2]
[404286423,1770033045018,-151.0,0.00014439,2]
[404286424,1770033045028,-1503.0,0.00014439,2]
[404286425,1770033045042,-151.0,0.00014439,2]
[404286426,1770033045055,-1503.0,0.00014439,2]
[404286427,1770033045069,-151.0,0.00014439,2]
[404286428,1770033045083,-1503.0,0.00014439,2]
[404286429,1770033045095,-1503.0,0.00014439,2]
[404286430,1770033045110,-151.0,0.00014439,2]
[404286431,1770033045122,-1503.0,0.00014439,2]
[404286432,1770033045135,-151.0,0.00014439,2]
[404286433,1770033045147,-151.0,0.00014439,2]
[404286434,1770033045159,-151.0,0.00014439,2]
[404286435,1770033045170,-151.0,0.00014439,2]
[404286436,1770033045182,-151.0,0.00014439,2]
[404286437,1770033045194,-151.0,0.00014439,2]
[404286438,1770033045204,-151.0,0.00014439,2]
[404286439,1770033045217,-151.0,0.00014439,2]
[404286440,1770033045227,-157.47759902,0.00014439,2]
[404286441,1770033045238,-188.6326235,0.00014439,2]
[404286442,1770033045250,-1503.0,0.00014439,2]
[404286443,1770033045262,-1503.0,0.00014439,2]
[404286444,1770033045272,-1503.0,0.00014439,2]
[404286445,1770033045283,-1503.0,0.00014439,2]
[404286446,1770033045292,-1503.0,0.00014439,2]
[404286447,1770033045306,-1503.0,0.00014439,2]
[404286448,1770033045318,-1503.0,0.00014439,2]
[404286449,1770033045330,-1503.0,0.00014439,2]
[404286450,1770033045342,-1503.0,0.00014439,2]
[404286451,1770033045353,-1503.0,0.00014439,2]
[404286452,1770033045362,-1503.0,0.00014439,2]
[404286453,1770033045373,-1503.0,0.00014439,2]
[404286454,1770033045383,-1503.0,0.00014439,2]
[404286455,1770033045393,-1503.0,0.00014439,2]
[404286456,1770033045404,-1503.0,0.00014439,2]
[404286457,1770033045414,-1503.0,0.00014439,2]
[404286458,1770033045425,-1503.0,0.00014439,2]
[404286459,1770033045435,-1503.0,0.00014439,2]
[404286460,1770033045445,-379.46185388,0.00014439,2]
[404286461,1770033045456,-167.0,0.00014439,2]
[404286462,1770033045466,-166.01782935,0.00014439,2]
[404286463,1770033045476,-393.99562504,0.00014451,2]
[404286464,1770033045485,-1000.0,0.00014521,2]
[404286465,1770033045496,-845.5316297,0.00014521,2]
[404286466,1770033045506,-445.7560689,0.00014521,2]
[404286467,1770033045516,-1000.0,0.00014521,2]
[404286468,1770033045527,-500.0,0.00014521,2]
[404286469,1770033045538,-1142.79089811,0.00014521,2]
[404286470,1770033045549,-463.7080185,0.00014521,2]
[404286471,1770033045567,-504.42982336,0.00014521,2]
[404286472,1770033045580,-514.08429044,0.00014521,2]
[404286473,1770033045592,-1061.85744553,0.00014521,2]
[404286474,1770033045604,-1000.0,0.00014521,2]
[404286475,1770033045614,-1002.39079139,0.00014521,2]
[404286476,1770033045625,-11435.38764467,0.0001456,2]
[404286477,1770033045638,-502.95071122,0.00014561,2]
[404286478,1770033045649,-10954.02929009,0.00014561,2]
[404286479,1770033045661,-166.66,0.00014562,2]
[404286480,1770033045671,-500.0,0.00014566,2]
[404286481,1770033045682,-500.0,0.00014566,2]
[404286482,1770033045695,-500.0,0.00014566,2]
[404286483,1770033045706,-500.0,0.00014566,2]
[404286484,1770033045716,-500.0,0.00014576,2]
[404286485,1770033045727,-500.0,0.00014576,2]
[404286486,1770033045738,-500.0,0.00014576,2]
[404286487,1770033045748,-500.0,0.00014576,2]
[404286488,1770033045758,-500.0,0.00014576,2]
[404286489,1770033045768,-500.0,0.00014576,2]
[404286490,1770033045778,-500.0,0.00014576,2]
[404286491,1770033045787,-500.0,0.00014576,2]
[404286492,1770033045796,-500.0,0.00014576,2]
[404286493,1770033045806,-500.0,0.00014576,2]
[404286494,1770033045815,-500.0,0.00014576,2]
[404286495,1770033045825,-159.30915247,0.00014576,2]
[404286496,1770033045834,-500.0,0.00014576,2]
[404286497,1770033045844,-500.0,0.00014576,2]
[404286498,1770033045854,-500.0,0.00014576,2]
[404286499,1770033045863,-500.0,0.00014576,2]
[404286500,1770033045872,-500.0,0.00014576,2]
[404286501,1770033045882,-500.0,0.00014576,2]
[404286502,1770033045891,-500.0,0.00014576,2]
[404286503,1770033045900,-500.0,0.00014576,2]
[404286504,1770033045911,-504.83472388,0.00014576,2]
[404286505,1770033045920,-500.0,0.00014576,2]
[404286506,1770033045930,-500.0,0.00014576,2]
[404286507,1770033045941,-277.632,0.00014576,2]
[404286508,1770033045951,-151.0,0.00014669,2]
[404286509,1770033045961,-151.0,0.00014683,2]
[404286510,1770033045972,-151.0,0.00014695,2]
[404286511,1770033045984,-500.0,0.00014728,2]
[404286512,1770033045994,-151.0,0.00014794,2]
[404286513,1770033046004,-179.5507367,0.000149,2]
[404286514,1770033046014,-166.66,0.00014999,2]
[404286515,1770033046023,-1500.0,0.00015068,2]
[404286516,1770033046034,-179.20533301,0.00015068,2]
[404286517,1770033046044,-1500.0,0.00015068,2]
[404286518,1770033046054,-900.0,0.00015068,2]
[404286519,1770033046063,-11435.38764467,0.00015117,2]
[404286520,1770033046073,-10954.02929009,0.00015118,2]
[404286521,1770033046082,-1600.0,0.00015176,2]
[404286522,1770033046091,-433.0,0.00015185,2]
[404286523,1770033046100,-9136.31,0.00015273,2]
[404286525,1770033046110,-500.0,0.00015276,2]
[404286527,1770033046119,-502.95071122,0.00015396,2]
[404286529,1770033046128,-166.66,0.00015437,2]
[404286531,1770033046137,-502.28798495,0.00015473,2]
[404286533,1770033046147,-500.0,0.00015473,2]
[404286535,1770033046157,-500.0,0.00015473,2]
[404286537,1770033046166,-500.0,0.00015473,2]
[404286539,1770033046175,-500.0,0.00015473,2]
[404286541,1770033046186,-500.0,0.00015473,2]
[404286544,1770033046196,-500.0,0.00015473,2]
[404286546,1770033046206,-500.0,0.00015473,2]
[404286548,1770033046217,-500.0,0.00015473,2]
[404286549,1770033046227,-500.0,0.00015473,2]
[404286550,1770033046238,-500.0,0.00015473,2]
[404286551,1770033046247,-586.45296103,0.00015473,2]
[404286552,1770033046256,-501.89927416,0.00015473,2]
[404286554,1770033046266,-500.0,0.00015473,2]
[404286556,1770033046276,-500.0,0.00015473,2]
[404286559,1770033046287,-500.0,0.00015473,2]
[404286560,1770033046296,-500.0,0.00015473,2]
[404286563,1770033046306,-500.0,0.00015473,2]
[404286565,1770033046315,-500.0,0.00015473,2]
[404286567,1770033046325,-500.0,0.00015473,2]
[404286569,1770033046335,-501.94112039,0.00015473,2]
[404286571,1770033046346,-500.0,0.00015473,2]
[404286573,1770033046356,-500.0,0.00015473,2]
[404286574,1770033046366,-500.0,0.00015473,2]
[404286577,1770033046376,-500.0,0.00015473,2]
[404286579,1770033046387,-500.0,0.00015473,2]
[404286581,1770033046396,-501.09302375,0.00015473,2]
[404286583,1770033046407,-500.0,0.00015473,2]
[404286585,1770033046416,-500.0,0.00015473,2]
[404286587,1770033046425,-500.62937167,0.00015473,2]
[404286588,1770033046434,-500.0,0.00015473,2]
[404286590,1770033046448,-500.0,0.00015473,2]
[404286591,1770033046458,-500.0,0.00015473,2]
[404286593,1770033046467,-500.0,0.00015473,2]
[404286594,1770033046478,-501.08336444,0.00015473,2]
[404286596,1770033046488,-500.0,0.00015473,2]
[404286597,1770033046497,-291.61164288,0.00015473,2]
[404286599,1770033046506,-500.0,0.00015473,2]
[404286600,1770033046515,-500.0,0.00015473,2]
[404286602,1770033046524,-500.0,0.00015473,2]
[404286603,1770033046533,-500.0,0.00015473,2]
[404286605,1770033046543,-157.58038737,0.00015473,2]
[404286606,1770033046553,-500.0,0.00015473,2]
[404286608,1770033046562,-500.0,0.00015473,2]
[404286610,1770033046572,-500.0,0.00015473,2]
[404286611,1770033046581,-500.0,0.00015473,2]
[404286613,1770033046591,-500.0,0.00015473,2]
[404286615,1770033046601,-500.0,0.00015473,2]
[404286616,1770033046611,-2351.0,0.00015506,2]
[404286618,1770033046620,-393.99562504,0.00015601,2]
[404286619,1770033046630,-277.64620196,0.00015616,2]
[404286621,1770033046639,-392.5604124,0.00015616,2]
[404286623,1770033046648,-5146.17023235,0.00015624,2]
[404286624,1770033046659,-11435.38764467,0.00015673,2]
[404286626,1770033046669,-10954.02929009,0.00015674,2]
[404286628,1770033046679,-500.0,0.00015753,2]
[404286629,1770033046689,-271.81606934,0.00015784,2]
[404286631,1770033046700,-717.32690753,0.00015784,2]
[404286634,1770033046709,-500.0,0.00015824,2]
[404286636,1770033046720,-715.94,0.00015918,2]
[404286637,1770033046730,-159.99318318,0.00015931,2]
[404286638,1770033046740,-3992.56342833,0.0001596,2]
[404286639,1770033046749,-283.19199064,0.00016011,2]
[404286640,1770033046758,-399.10712823,0.00016021,2]
[404286642,1770033046768,-503.91068608,0.00016021,2]
[404286644,1770033046777,-1000.0,0.00016021,2]
[404286646,1770033046786,-1000.0,0.00016021,2]
[404286648,1770033046796,-1000.0,0.00016021,2]
[404286650,1770033046805,-1000.0,0.00016021,2]
[404286652,1770033046815,-1000.0,0.00016021,2]
[404286655,1770033046824,-1005.45817911,0.00016021,2]
[404286658,1770033046837,-1000.0,0.00016021,2]
[404286660,1770033046846,-1000.0,0.00016021,2]
[404286663,1770033046856,-1005.38162593,0.00016021,2]
[404286665,1770033046865,-1000.0,0.00016021,2]
[404286667,1770033046875,-1000.0,0.00016021,2]
[404286669,1770033046884,-1000.0,0.00016021,2]
[404286671,1770033046893,-1000.0,0.00016021,2]
[404286673,1770033046902,-1000.0,0.00016021,2]
[404286675,1770033046911,-740.83933027,0.00016021,2]
[404286677,1770033046921,-1000.0,0.00016021,2]
[404286679,1770033046931,-1004.30163313,0.00016021,2]
[404286681,1770033046942,-1000.0,0.00016021,2]
[404286683,1770033046951,-1000.0,0.00016021,2]
[404286685,1770033046961,-1000.0,0.00016021,2]
[404286687,1770033046970,-1000.0,0.00016021,2]
[404286689,1770033046983,-503.27979337,0.00016021,2]
[404286691,1770033046995,-1018.80564021,0.00016021,2]
[404286693,1770033047006,-1000.0,0.00016021,2]
[404286695,1770033047016,-761.27528148,0.00016021,2]
[404286697,1770033047025,-487.31307274,0.00016021,2]
[404286699,1770033047034,-1000.0,0.00016021,2]
[404286701,1770033047043,-1003.56149344,0.00016021,2]
[404286704,1770033047053,-1000.0,0.00016021,2]
[404286706,1770033047063,-1000.0,0.00016021,2]
[404286708,1770033047072,-1000.0,0.00016021,2]
[404286710,1770033047083,-1000.0,0.00016021,2]
[404286712,1770033047094,-1000.0,0.00016021,2]
[404286718,1770033047145,-1000.0,0.00016021,2]
[404286720,1770033047155,-223.2,0.00016063,2]
[404286722,1770033047164,-3412.42,0.00016116,2]
[404286724,1770033047173,-305.66548204,0.00016139,2]
[404286726,1770033047182,-11435.38764467,0.0001623,2]
[404286728,1770033047191,-502.95071122,0.0001623,2]
[404286730,1770033047200,-10954.02929009,0.00016231,2]
[404286732,1770033047209,-1265.44969236,0.00016284,2]
[404286734,1770033047218,-152.49,0.00016331,2]
[404286736,1770033047227,-507.10580581,0.00016372,2]
[404286738,1770033047236,-2835.0,0.000164,2]
[404286740,1770033047244,-163.0,0.000164,2]
[404286742,1770033047253,-839.0,0.000164,2]
[404286743,1770033047262,-163.0,0.000164,2]
[404286744,1770033047271,-839.0,0.000164,2]
[404286746,1770033047281,-1330.2,0.00016438,2]
[404286748,1770033047290,-500.0,0.00016438,2]
[404286750,1770033047299,-583.52076571,0.00016438,2]
[404286752,1770033047308,-1872.11781497,0.00016438,2]
[404286754,1770033047318,-1167.19540553,0.00016438,2]
[404286756,1770033047328,-1167.19540553,0.00016438,2]
[404286758,1770033047337,-1167.19540553,0.00016438,2]
[404286760,1770033047347,-1167.19540553,0.00016438,2]
[404286762,1770033047357,-1167.19540553,0.00016438,2]
[404286764,1770033047367,-1167.19540553,0.00016438,2]
[404286766,1770033047376,-1167.19540553,0.00016438,2]
[404286767,1770033047387,-1167.19540553,0.00016438,2]
[404286768,1770033047396,-1167.19540553,0.00016438,2]
[404286769,1770033047405,-1167.19540553,0.00016438,2]
[404286770,1770033047414,-1167.19540553,0.00016438,2]
[404286771,1770033047423,-1167.19540553,0.00016438,2]
[404286772,1770033047432,-1167.19540553,0.00016438,2]
[404286773,1770033047441,-1167.19540553,0.00016438,2]
[404286774,1770033047450,-1167.19540553,0.00016438,2]
[404286775,1770033047459,-1167.19540553,0.00016438,2]
[404286776,1770033047468,-1167.19540553,0.00016438,2]
[404286777,1770033047477,-1167.19540553,0.00016438,2]
[404286778,1770033047486,-1167.19540553,0.00016438,2]
[404286779,1770033047495,-1167.19540553,0.00016438,2]
[404286780,1770033047505,-1167.19540553,0.00016438,2]
[404286781,1770033047514,-1167.19540553,0.00016438,2]
[404286782,1770033047523,-1167.19540553,0.00016438,2]
[404286783,1770033047532,-1167.19540553,0.00016438,2]
[404286784,1770033047541,-1167.19540553,0.00016438,2]
[404286785,1770033047550,-1167.19540553,0.00016438,2]
[404286786,1770033047559,-1167.19540553,0.00016438,2]
[404286787,1770033047568,-1167.19540553,0.00016438,2]
[404286788,1770033047577,-1167.19540553,0.00016438,2]
[404286789,1770033047585,-1167.19540553,0.00016438,2]
[404286790,1770033047594,-1167.19540553,0.00016438,2]
[404286791,1770033047603,-1167.19540553,0.00016438,2]
[404286792,1770033047612,-1167.19540553,0.00016438,2]
[404286793,1770033047621,-1167.19540553,0.00016438,2]
[404286794,1770033047631,-1167.19540553,0.00016438,2]
[404286795,1770033047640,-1167.19540553,0.00016438,2]
[404286796,1770033047649,-1167.19540553,0.00016438,2]
[404286797,1770033047661,-1167.19540553,0.00016438,2]
[404286798,1770033047670,-1167.19540553,0.00016438,2]
[404286799,1770033047679,-1167.19540553,0.00016438,2]
[404286800,1770033047689,-1167.19540553,0.00016438,2]
[404286801,1770033047698,-1167.19540553,0.00016438,2]
[404286802,1770033047708,-1167.19540553,0.00016438,2]
[404286803,1770033047717,-1167.19540553,0.00016438,2]
[404286804,1770033047727,-1167.19540553,0.00016438,2]
[404286805,1770033047736,-1167.19540553,0.00016438,2]
[404286806,1770033047745,-1167.19540553,0.00016438,2]
[404286807,1770033047754,-1167.19540553,0.00016438,2]
[404286808,1770033047763,-1167.19540553,0.00016438,2]
[404286809,1770033047773,-1167.19540553,0.00016438,2]
[404286810,1770033047782,-1167.19540553,0.00016438,2]
[404286811,1770033047791,-1167.19540553,0.00016438,2]
[404286812,1770033047800,-1167.19540553,0.00016438,2]
[404286813,1770033047810,-1167.19540553,0.00016438,2]
[404286814,1770033047819,-1167.19540553,0.00016438,2]
[404286815,1770033047828,-1167.19540553,0.00016438,2]
[404286816,1770033047837,-1167.19540553,0.00016438,2]
[404286817,1770033047847,-1167.19540553,0.00016438,2]
[404286818,1770033047856,-1167.19540553,0.00016438,2]
[404286819,1770033047865,-1167.19540553,0.00016438,2]
[404286820,1770033047875,-1167.19540553,0.00016438,2]
[404286821,1770033047884,-1167.19540553,0.00016438,2]
[404286822,1770033047893,-1167.19540553,0.00016438,2]
[404286823,1770033047902,-1167.19540553,0.00016438,2]
[404286824,1770033047912,-1167.19540553,0.00016438,2]
[404286825,1770033047921,-1167.19540553,0.00016438,2]
[404286826,1770033047930,-1167.19540553,0.00016438,2]
[404286827,1770033047939,-1167.19540553,0.00016438,2]
[404286828,1770033047948,-1167.19540553,0.00016438,2]
[404286829,1770033047958,-1167.19540553,0.00016438,2]
[404286830,1770033047967,-900.0,0.00016438,2]
[404286831,1770033047978,-250.55733734,0.00016438,2]
[404286832,1770033047987,-800.78453244,0.00016438,2]
[404286833,1770033047998,-506.0,0.00016475,2]
[404286834,1770033048007,-200.02287089,0.00016478,2]
[404286835,1770033048018,-715.94,0.00016515,2]
[404286836,1770033048027,-1500.0,0.00016568,2]
[404286837,1770033048036,-1500.0,0.00016568,2]
[404286838,1770033048045,-545.1454494,0.00016568,2]
[404286839,1770033048054,-345.31167706,0.00016568,2]
[404286840,1770033048063,-1315.28060531,0.00016568,2]
[404286841,1770033048072,-1500.0,0.00016568,2]
[404286842,1770033048081,-1500.0,0.00016568,2]
[404286843,1770033048091,-619.84098311,0.00016568,2]
[404286844,1770033048100,-624.86514765,0.00016568,2]
[404286845,1770033048110,-505.54193795,0.00016568,2]
[404286846,1770033048123,-505.24936027,0.00016568,2]
[404286847,1770033048132,-1500.0,0.00016568,2]
[404286848,1770033048141,-165.40489721,0.00016568,2]
[404286849,1770033048150,-1500.0,0.00016568,2]
[404286850,1770033048160,-1500.0,0.00016568,2]
[404286851,1770033048169,-1500.0,0.00016568,2]
[404286852,1770033048178,-1500.0,0.00016568,2]
[404286853,1770033048187,-1500.0,0.00016568,2]
[404286854,1770033048197,-1500.0,0.00016568,2]
[404286855,1770033048207,-1500.0,0.00016568,2]
[404286856,1770033048216,-1500.0,0.00016568,2]